[Event "Titled Tuesday Blitz August 16 Early 2022"]
[White "Fernandez Siles, Luis"]
[Black "Korelskiy, Egor"]
[WhiteFideId "2209420"]
[BlackFideId "34329064"]
[WhiteElo "2211"]
[BlackElo "2077"]
[Result "0-1"]
[Round "04"]
[TimeControl "180+2"]
[Date "2022.08.18"]
[WhiteClock "0:00:00"]
[BlackClock "0:00:00"]

1. e4 {[%clk 0:00:00]}  c5 {[%clk 0:00:00]} 2. Nf3 {[%clk 0:00:00]}  e6 {[%clk 0:00:00]} 3. c3 {[%clk 0:00:00]}  d5 {[%clk 0:00:00]} 4. exd5 {[%clk 0:00:00]}  exd5 {[%clk 0:00:00]} 5. d4 {[%clk 0:00:00]}  Nf6 {[%clk 0:00:00]} 6. Be3 {[%clk 0:00:00]}  Qc7 {[%clk 0:00:00]} 7. Bd3 {[%clk 0:00:00]}  Bd6 {[%clk 0:00:00]} 8. dxc5 {[%clk 0:00:00]}  Bxc5 {[%clk 0:00:00]} 9. Bxc5 {[%clk 0:00:00]}  Qxc5 {[%clk 0:00:00]} 10. Qe2+ {[%clk 0:00:00]}  Be6 {[%clk 0:00:00]} 11. Nd4 {[%clk 0:00:00]}  Qe7 {[%clk 0:00:00]} 12. O-O {[%clk 0:00:00]}  O-O {[%clk 0:00:00]} 13. Re1 {[%clk 0:00:00]}  Re8 {[%clk 0:00:00]} 14. Nd2 {[%clk 0:00:00]}  Nc6 {[%clk 0:00:00]} 15. N2f3 {[%clk 0:00:00]}  Qd6 {[%clk 0:00:00]} 16. Qc2 {[%clk 0:00:00]}  h6 {[%clk 0:00:00]} 17. Bf5 {[%clk 0:00:00]}  Rac8 {[%clk 0:00:00]} 18. Bxe6 {[%clk 0:00:00]}  fxe6 {[%clk 0:00:00]} 19. Nxc6 {[%clk 0:00:00]}  bxc6 {[%clk 0:00:00]} 20. Ne5 {[%clk 0:00:00]}  Ne4 {[%clk 0:00:00]} 21. f4 {[%clk 0:00:00]}  Qc5+ {[%clk 0:00:00]} 22. Kf1 {[%clk 0:00:00]}  Rf8 {[%clk 0:00:00]} 23. Nd3 {[%clk 0:00:00]}  Qe7 {[%clk 0:00:00]} 24. g3 {[%clk 0:00:00]}  e5 {[%clk 0:00:00]} 25. Kg2 {[%clk 0:00:00]}  exf4 {[%clk 0:00:00]} 26. Nxf4 {[%clk 0:00:00]}  Rce8 {[%clk 0:00:00]} 27. Qe2 {[%clk 0:00:00]}  Qg5 {[%clk 0:00:00]} 28. Rf1 {[%clk 0:00:00]}  Nxg3 {[%clk 0:00:00]} 0-1


[Site "https://www.chess.com"]

[Event "Titled Tuesday Blitz August 16 Early 2022"]
[White "Fier, Alexandr"]
[Black "Estrada Nieto, Julian"]
[WhiteFideId "2107139"]
[BlackFideId "5101018"]
[WhiteElo "2598"]
[BlackElo "2252"]
[Result "1-0"]
[Round "04"]
[TimeControl "180+2"]
[Date "2022.08.18"]
[WhiteClock "0:00:00"]
[BlackClock "0:00:00"]

1. d4 {[%clk 0:00:00]}  d5 {[%clk 0:00:00]} 2. Bg5 {[%clk 0:00:00]}  h6 {[%clk 0:00:00]} 3. Bh4 {[%clk 0:00:00]}  c6 {[%clk 0:00:00]} 4. e3 {[%clk 0:00:00]}  Qb6 {[%clk 0:00:00]} 5. Qc1 {[%clk 0:00:00]}  e5 {[%clk 0:00:00]} 6. Nf3 {[%clk 0:00:00]}  e4 {[%clk 0:00:00]} 7. Nfd2 {[%clk 0:00:00]}  Ne7 {[%clk 0:00:00]} 8. Bxe7 {[%clk 0:00:00]}  Bxe7 {[%clk 0:00:00]} 9. c4 {[%clk 0:00:00]}  O-O {[%clk 0:00:00]} 10. Nc3 {[%clk 0:00:00]}  Be6 {[%clk 0:00:00]} 11. c5 {[%clk 0:00:00]}  Qc7 {[%clk 0:00:00]} 12. b4 {[%clk 0:00:00]}  b6 {[%clk 0:00:00]} 13. g3 {[%clk 0:00:00]}  Nd7 {[%clk 0:00:00]} 14. Nb3 {[%clk 0:00:00]}  a5 {[%clk 0:00:00]} 15. a3 {[%clk 0:00:00]}  axb4 {[%clk 0:00:00]} 16. axb4 {[%clk 0:00:00]}  Qb7 {[%clk 0:00:00]} 17. Rb1 {[%clk 0:00:00]}  bxc5 {[%clk 0:00:00]} 18. bxc5 {[%clk 0:00:00]}  Rfb8 {[%clk 0:00:00]} 19. Be2 {[%clk 0:00:00]}  Bh3 {[%clk 0:00:00]} 20. Bf1 {[%clk 0:00:00]}  Bxf1 {[%clk 0:00:00]} 21. Kxf1 {[%clk 0:00:00]}  Qa7 {[%clk 0:00:00]} 22. Kg2 {[%clk 0:00:00]}  Qa3 {[%clk 0:00:00]} 23. Qc2 {[%clk 0:00:00]}  Nf6 {[%clk 0:00:00]} 24. Rb2 {[%clk 0:00:00]}  Qa7 {[%clk 0:00:00]} 25. Rhb1 {[%clk 0:00:00]}  Qd7 {[%clk 0:00:00]} 26. Qd1 {[%clk 0:00:00]}  h5 {[%clk 0:00:00]} 27. h4 {[%clk 0:00:00]}  Qf5 {[%clk 0:00:00]} 28. Ne2 {[%clk 0:00:00]}  Ng4 {[%clk 0:00:00]} 29. Nf4 {[%clk 0:00:00]}  Kh7 {[%clk 0:00:00]} 30. Nd2 {[%clk 0:00:00]}  Rxb2 {[%clk 0:00:00]} 31. Rxb2 {[%clk 0:00:00]}  Ra3 {[%clk 0:00:00]} 32. Nf1 {[%clk 0:00:00]}  Bd8 {[%clk 0:00:00]} 33. Qb1 {[%clk 0:00:00]}  Bc7 {[%clk 0:00:00]} 34. Nh3 {[%clk 0:00:00]}  f6 {[%clk 0:00:00]} 35. Kg1 {[%clk 0:00:00]}  Nxe3 {[%clk 0:00:00]} 36. fxe3 {[%clk 0:00:00]}  Qxh3 {[%clk 0:00:00]} 37. Rg2 {[%clk 0:00:00]}  Ba5 {[%clk 0:00:00]} 38. Qd1 {[%clk 0:00:00]}  g6 {[%clk 0:00:00]} 39. Qc1 {[%clk 0:00:00]}  Bb4 {[%clk 0:00:00]} 40. Qb1 {[%clk 0:00:00]}  Bc3 {[%clk 0:00:00]} 41. Qb7+ {[%clk 0:00:00]}  Kh6 {[%clk 0:00:00]} 42. Qb8 {[%clk 0:00:00]} 1-0


[Site "https://www.chess.com"]

[Event "Titled Tuesday Blitz August 16 Early 2022"]
[White "Fiorito, Joaquin"]
[Black "Piesik, Piotr"]
[WhiteFideId "180173"]
[BlackFideId "1136194"]
[WhiteElo "1758"]
[BlackElo "2221"]
[Result "0-1"]
[Round "04"]
[TimeControl "180+2"]
[Date "2022.08.18"]
[WhiteClock "0:00:00"]
[BlackClock "0:00:00"]

1. e4 {[%clk 0:00:00]}  g6 {[%clk 0:00:00]} 2. d4 {[%clk 0:00:00]}  Bg7 {[%clk 0:00:00]} 3. Nc3 {[%clk 0:00:00]}  c6 {[%clk 0:00:00]} 4. f4 {[%clk 0:00:00]}  d5 {[%clk 0:00:00]} 5. e5 {[%clk 0:00:00]}  Nh6 {[%clk 0:00:00]} 6. Nf3 {[%clk 0:00:00]}  Bg4 {[%clk 0:00:00]} 7. Be3 {[%clk 0:00:00]}  Nf5 {[%clk 0:00:00]} 8. Bf2 {[%clk 0:00:00]}  h5 {[%clk 0:00:00]} 9. Bd3 {[%clk 0:00:00]}  e6 {[%clk 0:00:00]} 10. O-O {[%clk 0:00:00]}  Nd7 {[%clk 0:00:00]} 11. a3 {[%clk 0:00:00]}  a5 {[%clk 0:00:00]} 12. Nb1 {[%clk 0:00:00]}  b5 {[%clk 0:00:00]} 13. Nbd2 {[%clk 0:00:00]}  a4 {[%clk 0:00:00]} 14. c3 {[%clk 0:00:00]}  Nb6 {[%clk 0:00:00]} 15. h3 {[%clk 0:00:00]}  Bxf3 {[%clk 0:00:00]} 16. Nxf3 {[%clk 0:00:00]}  Nc4 {[%clk 0:00:00]} 17. Qe2 {[%clk 0:00:00]}  h4 {[%clk 0:00:00]} 18. Ng5 {[%clk 0:00:00]}  Bf8 {[%clk 0:00:00]} 19. Rab1 {[%clk 0:00:00]}  Be7 {[%clk 0:00:00]} 20. Nf3 {[%clk 0:00:00]}  Kd7 {[%clk 0:00:00]} 21. Nd2 {[%clk 0:00:00]}  Qb6 {[%clk 0:00:00]} 22. Nxc4 {[%clk 0:00:00]}  bxc4 {[%clk 0:00:00]} 23. Bc2 {[%clk 0:00:00]}  Qb5 {[%clk 0:00:00]} 24. Rfd1 {[%clk 0:00:00]}  Rab8 {[%clk 0:00:00]} 25. Re1 {[%clk 0:00:00]}  Rb7 {[%clk 0:00:00]} 26. Qd1 {[%clk 0:00:00]}  Ra8 {[%clk 0:00:00]} 27. Bxf5 {[%clk 0:00:00]}  gxf5 {[%clk 0:00:00]} 28. Qh5 {[%clk 0:00:00]}  Rbb8 {[%clk 0:00:00]} 29. Qxf7 {[%clk 0:00:00]}  Rf8 {[%clk 0:00:00]} 30. Qh5 {[%clk 0:00:00]}  Rh8 {[%clk 0:00:00]} 31. Qf3 {[%clk 0:00:00]}  Rhg8 {[%clk 0:00:00]} 32. Kh1 {[%clk 0:00:00]}  Rab8 {[%clk 0:00:00]} 33. Qh5 {[%clk 0:00:00]}  Qa6 {[%clk 0:00:00]} 34. Qf3 {[%clk 0:00:00]}  Rb3 {[%clk 0:00:00]} 35. Qh5 {[%clk 0:00:00]}  Qc8 {[%clk 0:00:00]} 36. Qf3 {[%clk 0:00:00]}  Qe8 {[%clk 0:00:00]} 37. Kh2 {[%clk 0:00:00]}  Qg6 {[%clk 0:00:00]} 38. Kh1 {[%clk 0:00:00]}  Rgb8 {[%clk 0:00:00]} 39. Qe2 {[%clk 0:00:00]}  Bxa3 {[%clk 0:00:00]} 40. Ra1 {[%clk 0:00:00]}  Bxb2 {[%clk 0:00:00]} 41. Rxa4 {[%clk 0:00:00]}  Bxc3 {[%clk 0:00:00]} 42. Rc1 {[%clk 0:00:00]}  Rb2 {[%clk 0:00:00]} 43. Qf3 {[%clk 0:00:00]}  Bb4 {[%clk 0:00:00]} 44. Ra7+ {[%clk 0:00:00]}  Ke8 {[%clk 0:00:00]} 45. Bxh4 {[%clk 0:00:00]}  Bf8 {[%clk 0:00:00]} 46. Bg5 {[%clk 0:00:00]}  Bh6 {[%clk 0:00:00]} 47. Qg3 {[%clk 0:00:00]}  Bxg5 {[%clk 0:00:00]} 48. Qxg5 {[%clk 0:00:00]}  Qxg5 {[%clk 0:00:00]} 49. fxg5 {[%clk 0:00:00]}  Rb1 {[%clk 0:00:00]} 50. Rxb1 {[%clk 0:00:00]}  Rxb1+ {[%clk 0:00:00]} 51. Kh2 {[%clk 0:00:00]}  c3 {[%clk 0:00:00]} 52. g6 {[%clk 0:00:00]}  Kf8 {[%clk 0:00:00]} 53. Ra2 {[%clk 0:00:00]}  Rb2 {[%clk 0:00:00]} 54. Ra1 {[%clk 0:00:00]}  c2 {[%clk 0:00:00]} 55. Rc1 {[%clk 0:00:00]}  Kg7 {[%clk 0:00:00]} 56. Kg3 {[%clk 0:00:00]}  Kxg6 {[%clk 0:00:00]} 57. Kf4 {[%clk 0:00:00]}  Kh5 {[%clk 0:00:00]} 58. g4+ {[%clk 0:00:00]}  fxg4 {[%clk 0:00:00]} 59. hxg4+ {[%clk 0:00:00]}  Kg6 {[%clk 0:00:00]} 60. g5 {[%clk 0:00:00]}  Ra2 {[%clk 0:00:00]} 61. Kg4 {[%clk 0:00:00]}  c5 {[%clk 0:00:00]} 62. dxc5 {[%clk 0:00:00]}  Ra4+ {[%clk 0:00:00]} 63. Kf3 {[%clk 0:00:00]}  Rc4 {[%clk 0:00:00]} 64. Ke3 {[%clk 0:00:00]}  Kxg5 {[%clk 0:00:00]} 65. Kd3 {[%clk 0:00:00]}  Rxc5 {[%clk 0:00:00]} 66. Kd4 {[%clk 0:00:00]}  Rc4+ {[%clk 0:00:00]} 67. Kd3 {[%clk 0:00:00]}  Kf5 {[%clk 0:00:00]} 0-1


[Site "https://www.chess.com"]

[Event "Titled Tuesday Blitz August 16 Early 2022"]
[White "Garrido, Denis"]
[Black "Martic, Ivan"]
[WhiteFideId "601217"]
[BlackFideId "929301"]
[WhiteElo "2205"]
[BlackElo "2355"]
[Result "0-1"]
[Round "04"]
[TimeControl "180+2"]
[Date "2022.08.18"]
[WhiteClock "0:00:00"]
[BlackClock "0:00:00"]

1. c4 {[%clk 0:00:00]}  g6 {[%clk 0:00:00]} 2. Nc3 {[%clk 0:00:00]}  Bg7 {[%clk 0:00:00]} 3. d4 {[%clk 0:00:00]}  d6 {[%clk 0:00:00]} 4. Nf3 {[%clk 0:00:00]}  Nf6 {[%clk 0:00:00]} 5. Bf4 {[%clk 0:00:00]}  O-O {[%clk 0:00:00]} 6. h3 {[%clk 0:00:00]}  c5 {[%clk 0:00:00]} 7. d5 {[%clk 0:00:00]}  Bf5 {[%clk 0:00:00]} 8. Nd2 {[%clk 0:00:00]}  e5 {[%clk 0:00:00]} 9. Bh2 {[%clk 0:00:00]}  h5 {[%clk 0:00:00]} 10. e4 {[%clk 0:00:00]}  Bd7 {[%clk 0:00:00]} 11. Bd3 {[%clk 0:00:00]}  Bh6 {[%clk 0:00:00]} 12. a3 {[%clk 0:00:00]}  Bc8 {[%clk 0:00:00]} 13. b4 {[%clk 0:00:00]}  b6 {[%clk 0:00:00]} 14. Bg1 {[%clk 0:00:00]}  Na6 {[%clk 0:00:00]} 15. Rb1 {[%clk 0:00:00]}  Nc7 {[%clk 0:00:00]} 16. bxc5 {[%clk 0:00:00]}  bxc5 {[%clk 0:00:00]} 17. Be2 {[%clk 0:00:00]}  Nh7 {[%clk 0:00:00]} 18. g4 {[%clk 0:00:00]}  h4 {[%clk 0:00:00]} 19. f3 {[%clk 0:00:00]}  Bf4 {[%clk 0:00:00]} 20. Nb3 {[%clk 0:00:00]}  Bg3+ {[%clk 0:00:00]} 21. Kd2 {[%clk 0:00:00]}  Ng5 {[%clk 0:00:00]} 22. Na5 {[%clk 0:00:00]}  Nxd5 {[%clk 0:00:00]} 23. Nc6 {[%clk 0:00:00]}  Nxc3 {[%clk 0:00:00]} 24. Kxc3 {[%clk 0:00:00]}  Qc7 {[%clk 0:00:00]} 25. Qd5 {[%clk 0:00:00]}  Be6 {[%clk 0:00:00]} 0-1


[Site "https://www.chess.com"]

[Event "Titled Tuesday Blitz August 16 Early 2022"]
[White "Gheorghiu, Calin"]
[Black "Kuchava, Ana"]
[WhiteFideId "1200305"]
[BlackFideId "13605348"]
[WhiteElo "2168"]
[BlackElo "1955"]
[Result "1-0"]
[Round "04"]
[TimeControl "180+2"]
[Date "2022.08.18"]
[WhiteClock "0:00:00"]
[BlackClock "0:00:00"]

1. d4 {[%clk 0:00:00]}  d5 {[%clk 0:00:00]} 2. Nc3 {[%clk 0:00:00]}  Nf6 {[%clk 0:00:00]} 3. Bf4 {[%clk 0:00:00]}  Bf5 {[%clk 0:00:00]} 4. e3 {[%clk 0:00:00]}  e6 {[%clk 0:00:00]} 5. Bd3 {[%clk 0:00:00]}  Bxd3 {[%clk 0:00:00]} 6. cxd3 {[%clk 0:00:00]}  c6 {[%clk 0:00:00]} 7. Nf3 {[%clk 0:00:00]}  Bd6 {[%clk 0:00:00]} 8. Ne5 {[%clk 0:00:00]}  O-O {[%clk 0:00:00]} 9. g4 {[%clk 0:00:00]}  Qc7 {[%clk 0:00:00]} 10. Qf3 {[%clk 0:00:00]}  Nbd7 {[%clk 0:00:00]} 11. Qg3 {[%clk 0:00:00]}  a6 {[%clk 0:00:00]} 12. h4 {[%clk 0:00:00]}  c5 {[%clk 0:00:00]} 13. h5 {[%clk 0:00:00]}  cxd4 {[%clk 0:00:00]} 14. exd4 {[%clk 0:00:00]}  Qb6 {[%clk 0:00:00]} 15. Nxd7 {[%clk 0:00:00]}  Qxb2 {[%clk 0:00:00]} 16. Nxf6+ {[%clk 0:00:00]}  gxf6 {[%clk 0:00:00]} 17. O-O {[%clk 0:00:00]}  Bxf4 {[%clk 0:00:00]} 18. Qxf4 {[%clk 0:00:00]}  Qxc3 {[%clk 0:00:00]} 19. Rad1 {[%clk 0:00:00]}  Kg7 {[%clk 0:00:00]} 20. g5 {[%clk 0:00:00]}  fxg5 {[%clk 0:00:00]} 21. Qxg5+ {[%clk 0:00:00]}  Kh8 {[%clk 0:00:00]} 22. Qf6+ {[%clk 0:00:00]}  Kg8 {[%clk 0:00:00]} 23. h6 {[%clk 0:00:00]} 1-0


[Site "https://www.chess.com"]

[Event "Titled Tuesday Blitz August 16 Early 2022"]
[White "Ginzburg, Yakov"]
[Black "Zenin, Dmitry"]
[WhiteFideId "4157176"]
[BlackFideId "4127897"]
[WhiteElo "2265"]
[BlackElo "2215"]
[Result "1-0"]
[Round "04"]
[TimeControl "180+2"]
[Date "2022.08.18"]
[WhiteClock "0:00:00"]
[BlackClock "0:00:00"]

1. e4 {[%clk 0:00:00]}  g6 {[%clk 0:00:00]} 2. d4 {[%clk 0:00:00]}  Bg7 {[%clk 0:00:00]} 3. h4 {[%clk 0:00:00]}  c5 {[%clk 0:00:00]} 4. d5 {[%clk 0:00:00]}  h5 {[%clk 0:00:00]} 5. c3 {[%clk 0:00:00]}  d6 {[%clk 0:00:00]} 6. Bb5+ {[%clk 0:00:00]}  Bd7 {[%clk 0:00:00]} 7. Bxd7+ {[%clk 0:00:00]}  Nxd7 {[%clk 0:00:00]} 8. Bg5 {[%clk 0:00:00]}  Ngf6 {[%clk 0:00:00]} 9. Nd2 {[%clk 0:00:00]}  b5 {[%clk 0:00:00]} 10. Ngf3 {[%clk 0:00:00]}  Qb6 {[%clk 0:00:00]} 11. O-O {[%clk 0:00:00]}  O-O {[%clk 0:00:00]} 12. Re1 {[%clk 0:00:00]}  Rfe8 {[%clk 0:00:00]} 13. Qc2 {[%clk 0:00:00]}  Rac8 {[%clk 0:00:00]} 14. a4 {[%clk 0:00:00]}  a6 {[%clk 0:00:00]} 15. axb5 {[%clk 0:00:00]}  axb5 {[%clk 0:00:00]} 16. b3 {[%clk 0:00:00]}  Ng4 {[%clk 0:00:00]} 17. Ra2 {[%clk 0:00:00]}  c4 {[%clk 0:00:00]} 18. Re2 {[%clk 0:00:00]}  cxb3 {[%clk 0:00:00]} 19. Nxb3 {[%clk 0:00:00]}  Rxc3 {[%clk 0:00:00]} 20. Qb1 {[%clk 0:00:00]}  Kf8 {[%clk 0:00:00]} 21. Bd2 {[%clk 0:00:00]}  Rc4 {[%clk 0:00:00]} 22. Na5 {[%clk 0:00:00]}  Rc7 {[%clk 0:00:00]} 23. Nc6 {[%clk 0:00:00]}  Rcc8 {[%clk 0:00:00]} 24. Ba5 {[%clk 0:00:00]}  Qb7 {[%clk 0:00:00]} 25. Nfd4 {[%clk 0:00:00]}  Nde5 {[%clk 0:00:00]} 26. Rec2 {[%clk 0:00:00]}  Nxc6 {[%clk 0:00:00]} 27. dxc6 {[%clk 0:00:00]}  Qb8 {[%clk 0:00:00]} 28. Nxb5 {[%clk 0:00:00]}  Ne5 {[%clk 0:00:00]} 29. c7 {[%clk 0:00:00]}  Qb7 {[%clk 0:00:00]} 30. Rcb2 {[%clk 0:00:00]}  Nc4 {[%clk 0:00:00]} 31. Nxd6 {[%clk 0:00:00]}  Qa7 {[%clk 0:00:00]} 32. Nxc4 {[%clk 0:00:00]} 1-0


[Site "https://www.chess.com"]

[Event "Titled Tuesday Blitz August 16 Early 2022"]
[White "Girinath, P.D.S."]
[Black "Schut, Han"]
[WhiteFideId "5000572"]
[BlackFideId "1005561"]
[WhiteElo "2369"]
[BlackElo "2024"]
[Result "1-0"]
[Round "04"]
[TimeControl "180+2"]
[Date "2022.08.18"]
[WhiteClock "0:00:00"]
[BlackClock "0:00:00"]

1. e4 {[%clk 0:00:00]}  c5 {[%clk 0:00:00]} 2. Nf3 {[%clk 0:00:00]}  d6 {[%clk 0:00:00]} 3. Bb5+ {[%clk 0:00:00]}  Bd7 {[%clk 0:00:00]} 4. Bxd7+ {[%clk 0:00:00]}  Qxd7 {[%clk 0:00:00]} 5. O-O {[%clk 0:00:00]}  g6 {[%clk 0:00:00]} 6. c3 {[%clk 0:00:00]}  Bg7 {[%clk 0:00:00]} 7. d4 {[%clk 0:00:00]}  cxd4 {[%clk 0:00:00]} 8. cxd4 {[%clk 0:00:00]}  Nf6 {[%clk 0:00:00]} 9. Nc3 {[%clk 0:00:00]}  d5 {[%clk 0:00:00]} 10. e5 {[%clk 0:00:00]}  Ne4 {[%clk 0:00:00]} 11. Nxe4 {[%clk 0:00:00]}  dxe4 {[%clk 0:00:00]} 12. Ng5 {[%clk 0:00:00]}  Nc6 {[%clk 0:00:00]} 13. Be3 {[%clk 0:00:00]}  Rd8 {[%clk 0:00:00]} 14. Nxe4 {[%clk 0:00:00]}  Nxd4 {[%clk 0:00:00]} 15. Bxd4 {[%clk 0:00:00]}  Qxd4 {[%clk 0:00:00]} 16. Nd6+ {[%clk 0:00:00]}  Rxd6 {[%clk 0:00:00]} 17. exd6 {[%clk 0:00:00]}  Qxd6 {[%clk 0:00:00]} 18. Qa4+ {[%clk 0:00:00]}  Qc6 {[%clk 0:00:00]} 19. Qxc6+ {[%clk 0:00:00]}  bxc6 {[%clk 0:00:00]} 20. Rfd1 {[%clk 0:00:00]}  c5 {[%clk 0:00:00]} 21. Rac1 {[%clk 0:00:00]}  Bd4 {[%clk 0:00:00]} 22. b4 {[%clk 0:00:00]}  e5 {[%clk 0:00:00]} 23. bxc5 {[%clk 0:00:00]}  Kd7 {[%clk 0:00:00]} 24. c6+ {[%clk 0:00:00]}  Kc7 {[%clk 0:00:00]} 25. Kf1 {[%clk 0:00:00]}  Rb8 {[%clk 0:00:00]} 26. f4 {[%clk 0:00:00]}  f6 {[%clk 0:00:00]} 27. fxe5 {[%clk 0:00:00]}  fxe5 {[%clk 0:00:00]} 28. Ke2 {[%clk 0:00:00]}  Rb2+ {[%clk 0:00:00]} 29. Kd3 {[%clk 0:00:00]}  Rxa2 {[%clk 0:00:00]} 30. Rf1 {[%clk 0:00:00]}  Rf2 {[%clk 0:00:00]} 31. Rxf2 {[%clk 0:00:00]}  Bxf2 {[%clk 0:00:00]} 32. Ke4 {[%clk 0:00:00]}  Bd4 {[%clk 0:00:00]} 33. Kd5 {[%clk 0:00:00]}  a5 {[%clk 0:00:00]} 34. Rb1 {[%clk 0:00:00]}  a4 {[%clk 0:00:00]} 35. Rb7+ {[%clk 0:00:00]}  Kc8 {[%clk 0:00:00]} 36. Rxh7 {[%clk 0:00:00]}  a3 {[%clk 0:00:00]} 37. Kd6 {[%clk 0:00:00]} 1-0


[Site "https://www.chess.com"]

[Event "Titled Tuesday Blitz August 16 Early 2022"]
[White "Golubev, Mikhail"]
[Black "Zaksaite, Salomeja"]
[WhiteFideId "14100983"]
[BlackFideId "12801496"]
[WhiteElo "2374"]
[BlackElo "1953"]
[Result "1-0"]
[Round "04"]
[TimeControl "180+2"]
[Date "2022.08.18"]
[WhiteClock "0:00:00"]
[BlackClock "0:00:00"]

1. d4 {[%clk 0:00:00]}  Nf6 {[%clk 0:00:00]} 2. c4 {[%clk 0:00:00]}  g6 {[%clk 0:00:00]} 3. f3 {[%clk 0:00:00]}  Bg7 {[%clk 0:00:00]} 4. e4 {[%clk 0:00:00]}  c5 {[%clk 0:00:00]} 5. Ne2 {[%clk 0:00:00]}  O-O {[%clk 0:00:00]} 6. Nbc3 {[%clk 0:00:00]}  d6 {[%clk 0:00:00]} 7. Be3 {[%clk 0:00:00]}  b6 {[%clk 0:00:00]} 8. d5 {[%clk 0:00:00]}  e6 {[%clk 0:00:00]} 9. Qd2 {[%clk 0:00:00]}  exd5 {[%clk 0:00:00]} 10. cxd5 {[%clk 0:00:00]}  a6 {[%clk 0:00:00]} 11. a4 {[%clk 0:00:00]}  Bb7 {[%clk 0:00:00]} 12. Ng3 {[%clk 0:00:00]}  Nbd7 {[%clk 0:00:00]} 13. Be2 {[%clk 0:00:00]}  Ne8 {[%clk 0:00:00]} 14. O-O {[%clk 0:00:00]}  Nc7 {[%clk 0:00:00]} 15. f4 {[%clk 0:00:00]}  f5 {[%clk 0:00:00]} 16. exf5 {[%clk 0:00:00]}  gxf5 {[%clk 0:00:00]} 17. Nh5 {[%clk 0:00:00]}  Nf6 {[%clk 0:00:00]} 18. Nxg7 {[%clk 0:00:00]}  Kxg7 {[%clk 0:00:00]} 19. Bf3 {[%clk 0:00:00]}  Re8 {[%clk 0:00:00]} 20. Rad1 {[%clk 0:00:00]}  Qd7 {[%clk 0:00:00]} 21. Bf2 {[%clk 0:00:00]}  Ne4 {[%clk 0:00:00]} 22. Bxe4 {[%clk 0:00:00]}  fxe4 {[%clk 0:00:00]} 23. f5 {[%clk 0:00:00]}  Kh8 {[%clk 0:00:00]} 24. Bh4 {[%clk 0:00:00]}  Qf7 {[%clk 0:00:00]} 25. Qh6 {[%clk 0:00:00]}  Rf8 {[%clk 0:00:00]} 26. Qxd6 {[%clk 0:00:00]}  Ne8 {[%clk 0:00:00]} 27. Qe5+ {[%clk 0:00:00]}  Ng7 {[%clk 0:00:00]} 28. g4 {[%clk 0:00:00]}  Rae8 {[%clk 0:00:00]} 29. Qf4 {[%clk 0:00:00]}  e3 {[%clk 0:00:00]} 30. Rde1 {[%clk 0:00:00]}  e2 {[%clk 0:00:00]} 31. Rf2 {[%clk 0:00:00]} 1-0


[Site "https://www.chess.com"]

[Event "Titled Tuesday Blitz August 16 Early 2022"]
[White "Gomez Ledo, Roberto Carlos"]
[Black "Petrovic, Aleksa"]
[WhiteFideId "3507076"]
[BlackFideId "967629"]
[WhiteElo "2379"]
[BlackElo "2262"]
[Result "1-0"]
[Round "04"]
[TimeControl "180+2"]
[Date "2022.08.18"]
[WhiteClock "0:00:00"]
[BlackClock "0:00:00"]

1. d4 {[%clk 0:00:00]}  e6 {[%clk 0:00:00]} 2. Nf3 {[%clk 0:00:00]}  c5 {[%clk 0:00:00]} 3. c3 {[%clk 0:00:00]}  Nf6 {[%clk 0:00:00]} 4. Bf4 {[%clk 0:00:00]}  b6 {[%clk 0:00:00]} 5. e3 {[%clk 0:00:00]}  Bb7 {[%clk 0:00:00]} 6. h3 {[%clk 0:00:00]}  Be7 {[%clk 0:00:00]} 7. Nbd2 {[%clk 0:00:00]}  O-O {[%clk 0:00:00]} 8. Bd3 {[%clk 0:00:00]}  Nc6 {[%clk 0:00:00]} 9. Qe2 {[%clk 0:00:00]}  cxd4 {[%clk 0:00:00]} 10. exd4 {[%clk 0:00:00]}  Nd5 {[%clk 0:00:00]} 11. Bh2 {[%clk 0:00:00]}  f5 {[%clk 0:00:00]} 12. O-O {[%clk 0:00:00]}  Qe8 {[%clk 0:00:00]} 13. a3 {[%clk 0:00:00]}  g5 {[%clk 0:00:00]} 14. Ba6 {[%clk 0:00:00]}  Bxa6 {[%clk 0:00:00]} 15. Qxa6 {[%clk 0:00:00]}  g4 {[%clk 0:00:00]} 16. hxg4 {[%clk 0:00:00]}  fxg4 {[%clk 0:00:00]} 17. Ne5 {[%clk 0:00:00]}  Nxe5 {[%clk 0:00:00]} 18. Bxe5 {[%clk 0:00:00]}  Qh5 {[%clk 0:00:00]} 19. Qe2 {[%clk 0:00:00]}  d6 {[%clk 0:00:00]} 20. Bg3 {[%clk 0:00:00]}  Rf6 {[%clk 0:00:00]} 21. Ne4 {[%clk 0:00:00]}  Rh6 {[%clk 0:00:00]} 22. f3 {[%clk 0:00:00]}  Rf8 {[%clk 0:00:00]} 23. Kf2 {[%clk 0:00:00]}  gxf3 {[%clk 0:00:00]} 24. gxf3 {[%clk 0:00:00]}  Nf6 {[%clk 0:00:00]} 25. Rh1 {[%clk 0:00:00]}  Qxh1 {[%clk 0:00:00]} 26. Rxh1 {[%clk 0:00:00]}  Rxh1 {[%clk 0:00:00]} 27. Nxd6 {[%clk 0:00:00]}  Bxd6 {[%clk 0:00:00]} 28. Qxe6+ {[%clk 0:00:00]}  Kg7 {[%clk 0:00:00]} 29. Bxd6 {[%clk 0:00:00]}  Re8 {[%clk 0:00:00]} 30. Be7 {[%clk 0:00:00]}  Ng8 {[%clk 0:00:00]} 31. Qg4+ {[%clk 0:00:00]}  Kf7 {[%clk 0:00:00]} 32. Bg5 {[%clk 0:00:00]}  Ree1 {[%clk 0:00:00]} 33. Qf5+ {[%clk 0:00:00]}  Kg7 {[%clk 0:00:00]} 34. d5 {[%clk 0:00:00]}  Rhf1+ {[%clk 0:00:00]} 35. Kg3 {[%clk 0:00:00]}  h6 {[%clk 0:00:00]} 36. Bh4 {[%clk 0:00:00]}  Rg1+ {[%clk 0:00:00]} 37. Kf4 {[%clk 0:00:00]}  Re8 {[%clk 0:00:00]} 38. Qd7+ {[%clk 0:00:00]}  Kf8 {[%clk 0:00:00]} 39. d6 {[%clk 0:00:00]}  Rg7 {[%clk 0:00:00]} 40. Qc6 {[%clk 0:00:00]}  Rf7+ {[%clk 0:00:00]} 41. Kg3 {[%clk 0:00:00]}  Nf6 {[%clk 0:00:00]} 42. Bxf6 {[%clk 0:00:00]}  Rxf6 {[%clk 0:00:00]} 43. Qc7 {[%clk 0:00:00]}  Rg6+ {[%clk 0:00:00]} 44. Kf2 {[%clk 0:00:00]}  Rg7 {[%clk 0:00:00]} 45. d7 {[%clk 0:00:00]} 1-0


[Site "https://www.chess.com"]